fUSD/lending_fUSD_20250614
["ID","MTS","AMOUNT","RATE_DAILY","PERIOD"]
[365749270,1749875446443,-302.47,0.00017192,2]
[365749271,1749875446452,-254.08,0.00017195,2]
[365749272,1749875446462,-248.29,0.00017195,2]
[365749273,1749875446472,-246.78,0.00017195,2]
[365749274,1749875446484,-251.53,0.00017195,2]
[365749275,1749875446494,-251.56,0.00017195,2]
[365749276,1749875446503,-254.52,0.00017195,2]
[365749277,1749875446514,-304.88,0.00017195,2]
[365749278,1749875446526,-300.34,0.00017195,2]
[365749279,1749875446543,-247.99,0.00017195,2]
[365749280,1749875446552,-247.83,0.000172,2]
[365749281,1749875446562,-251.31,0.000172,2]
[365749282,1749875446572,-250.05,0.000172,2]
[365749283,1749875446583,-305.22,0.00017201,2]
[365749284,1749875446592,-254.5,0.00017209,2]
[365749285,1749875446602,-245.47,0.00017209,2]
[365749286,1749875446611,-246.73,0.00017209,2]
[365749287,1749875446620,-246.33,0.00017209,2]
[365749288,1749875446630,-300.81,0.00017212,2]
[365749289,1749875446640,-302.49,0.00017212,2]
[365749290,1749875446649,-247.28,0.00017223,2]
[365749291,1749875446659,-245.5,0.00017223,2]
[365749292,1749875446669,-253.98,0.00017223,2]
[365749293,1749875446678,-251.11,0.00017245,2]
[365749294,1749875446687,-246.32,0.00017245,2]
[365749295,1749875446697,-245.57,0.00017245,2]
[365749296,1749875446706,-248.49,0.00017287,2]
[365749297,1749875446715,-251.57,0.00017287,2]
[365749298,1749875446725,-250.46,0.00017287,2]
[365749299,1749875446735,-248.91,0.00017287,2]
[365749300,1749875446744,-249.06,0.00017358,2]
[365749301,1749875446754,-247.79,0.00017358,2]
[365749302,1749875446763,-246.67,0.00017358,2]
[365749303,1749875446772,-249.9,0.00017358,2]
[365749304,1749875446782,-248.94,0.0001736,2]
[365749305,1749875446791,-245.93,0.0001736,2]
[365749306,1749875446800,-376.0,0.00017421,2]
[365749307,1749875446810,-426.78,0.00017435,2]
[365749308,1749875446819,-752.0,0.00017442,2]
[365749309,1749875446828,-752.0,0.00017456,2]
[365749311,1749875446838,-247.92,0.00017464,2]
[365749313,1749875446848,-2000.0,0.000175,2]
[365749314,1749875446857,-752.0,0.00017513,2]
[365749315,1749875446867,-752.0,0.00017539,2]
[365749316,1749875446876,-2199.42238997,0.0001759,2]
[365749317,1749875446885,-750.86043779,0.000176,2]
[365749318,1749875446897,-8981.0,0.000176,2]
[365749321,1749875448123,-7515.4508296,0.000176,2]
[365749322,1749875448135,-853.36863261,0.000176,2]
[365749323,1749875448145,-250.2,0.00017632,2]
[365749324,1749875448155,-246.22,0.00017632,2]
[365749325,1749875448165,-246.53,0.00017632,2]
[365749326,1749875448180,-251.12,0.00017632,2]
[365749327,1749875448199,-249.46,0.00017632,2]
[365749328,1749875448210,-253.76,0.00017632,2]
[365749329,1749875448220,-253.56,0.00017632,2]
[365749330,1749875448230,-253.95,0.00017632,2]
[365749331,1749875448240,-248.49,0.00017632,2]
[365749332,1749875448249,-254.34,0.00017632,2]
[365749333,1749875448259,-52.65981442,0.00017632,2]
[365749334,1749875448271,-200.86018558,0.00017632,2]
[365749335,1749875448281,-247.35,0.00017633,2]
[365749336,1749875448292,-248.9,0.00017633,2]
[365749337,1749875448301,-254.65,0.00017633,2]
[365749338,1749875448311,-252.98,0.00017633,2]
[365749339,1749875448320,-249.51,0.00017633,2]
[365749340,1749875448330,-246.0,0.00017633,2]
[365749341,1749875448339,-253.94,0.00017633,2]
[365749342,1749875448349,-249.17,0.00017633,2]
[365749343,1749875448358,-23.00995457,0.00017633,2]
[365749344,1749875448370,-224.80004543,0.00017633,2]
[365749346,1749875448379,-249.53,0.00017633,2]
[365749348,1749875448388,-52.29350321,0.00017633,2]
[365749350,1749875448401,-193.87649679,0.00017633,2]
[365749352,1749875448410,-253.62,0.00017633,2]
[365749354,1749875448420,-249.03,0.00017633,2]
[365749356,1749875448430,-180.11692765,0.00017633,2]
[365749358,1749875448441,-68.59307235,0.00017633,2]
[365749360,1749875448450,-254.13,0.00017633,2]
[365749362,1749875448461,-246.06,0.00017633,2]
[365749364,1749875448470,-254.06,0.00017633,2]
[365749365,1749875448480,-246.08,0.00017633,2]
[365749366,1749875448492,-246.13,0.00017633,2]
[365749367,1749875448502,-600.0,0.00017633,4]
[365749368,1749875448512,-713.706155,0.00017633,2]
[365749369,1749875448522,-752.0,0.0001765,2]
[365749370,1749875448531,-200.0,0.00017823,5]
[365749371,1749875448542,-500.0,0.00017848,2]
[365749372,1749875448551,-500.0,0.00017849,2]
[365749373,1749875448561,-256.4301489,0.00017849,2]
[365749375,1749875471513,217.0,0.00015187,2]
[365749376,1749875527364,1159.55,0.0002,60]
[365749377,1749875528141,157.0,0.00016,2]
[365749380,1749875588830,157.0,0.00016,2]
[365749381,1749875648322,158.0,0.00016,2]
[365749387,1749875707182,176.0,0.00016,2]
[365749388,1749875713515,158.0,0.00016,2]
[365749394,1749875753594,698.47,0.00014978,2]
[365749403,1749875772066,158.0,0.00016,2]
[365749406,1749875885621,158.0,0.00016,2]
[365749408,1749875947100,158.0,0.00016,2]
[365749412,1749876007122,158.0,0.00016,2]
[365749414,1749876023016,1037.03702,0.00016001,5]
[365749415,1749876023282,1037.03702,0.00016001,5]
[365749416,1749876024094,1037.03704,0.00016001,5]
[365749417,1749876040527,251.48833684,0.0002,30]
[365749421,1749876220619,154.9,0.00013699,2]
[365749422,1749876235287,599.0,0.00015823,2]
[365749423,1749876239210,599.0,0.00015727,2]
[365749425,1749876254731,200.0,0.00015482,2]
[365749426,1749876266020,1660.0,0.0002,120]
[365749427,1749876279404,300.14,0.00016,2]
[365749455,1749876461168,10000.0,0.00016,2]
[365749456,1749876573495,150.0,0.00016001,5]
[365749457,1749876611778,200.0,0.00015092,2]
[365749458,1749876612910,200.0,0.00015716,2]
[365749459,1749876632004,-611.0,0.00016188,2]
[365749460,1749876632013,-467.0,0.000162,2]
[365749461,1749876632025,-144.0,0.000162,2]
[365749462,1749876632034,-200.0,0.0001634,3]
[365749463,1749876632043,-597.0,0.00016408,2]
[365749464,1749876632052,-597.0,0.00016424,2]
[365749465,1749876632061,-302.0,0.00016427,2]
[365749466,1749876632070,-597.0,0.0001647,2]
[365749467,1749876632080,-597.0,0.00016516,2]
[365749468,1749876632089,-683.36,0.0001652,2]
[365749469,1749876632098,-452.0,0.0001652,2]
[365749470,1749876632107,-597.0,0.00016534,2]
[365749471,1749876632117,-302.0,0.0001661,2]
[365749472,1749876632126,-206.97,0.00016642,2]
[365749473,1749876632135,-293.79030797,0.00016686,2]
[365749474,1749876632145,-302.0,0.00016696,2]
[365749475,1749876632155,-150.0,0.00016706,2]
[365749476,1749876632164,-150.0,0.00016749,2]
[365749477,1749876632177,-150.0,0.00016749,2]
[365749479,1749876632187,-150.0,0.00016749,2]
[365749481,1749876632197,-302.0,0.00016823,2]
[365749483,1749876632205,-150.0,0.00016875,2]
[365749485,1749876632216,-223.28,0.00016943,2]
[365749487,1749876632226,-200.0,0.00016963,4]
[365749489,1749876632235,-1200.0,0.00016999,2]
[365749490,1749876632245,-2052.79423089,0.00017,2]
[365749491,1749876632254,-302.0,0.00017062,2]
[365749492,1749876632264,-300.0,0.00017097,2]
[365749493,1749876632274,-207.4,0.00017098,2]
[365749494,1749876632283,-166.84,0.00017098,2]
[365749496,1749876632292,-698.47,0.00017242,2]
[365749498,1749876632301,-151.0,0.00017289,2]
[365749500,1749876632310,-2000.0,0.000173,2]
[365749502,1749876632319,-302.0,0.00017334,2]
[365749504,1749876632329,-604.0,0.00017357,2]
[365749506,1749876632338,-200.0,0.00017587,5]
[365749508,1749876632347,-2052.79423063,0.0001759,2]
[365749510,1749876632356,-1373.251042,0.00017633,2]
[365749551,1749876632365,-1373.251042,0.00017633,2]
[365749553,1749876632719,-269.421776,0.00017633,2]
[365749555,1749876632729,-269.421776,0.00017633,2]
[365749556,1749876632738,-1008.0,0.000177,2]
[365749558,1749876632747,-37630.20486078,0.000177,2]
[365749560,1749876632763,-3177.58741391,0.000177,2]
[365749939,1749876637945,-150.0,0.00017038,2]
[365749940,1749876637955,-150.0,0.00017179,2]
[365749941,1749876637964,-150.0,0.0001719,2]
[365749942,1749876637974,-445.5420282,0.00017699,2]
[365749943,1749876637983,-111.1466554,0.00017699,2]
[365749944,1749876638107,-388.8533446,0.00017699,2]
[365749945,1749876638116,-191.15948317,0.00017699,2]
[365749946,1749876638126,-500.0,0.00017699,2]
[365749947,1749876638136,-500.0,0.00017699,2]
[365749948,1749876638146,-396.06334884,0.00017699,2]
[365749949,1749876638155,-858.84627217,0.000177,2]
[365750128,1749876640070,-150.0,0.000172,2]
[365750130,1749876640080,-150.0,0.000172,2]
[365750131,1749876640089,-150.0,0.000172,2]
[365750133,1749876640098,-497.72946,0.000177,2]
[365750138,1749876640128,-150.0,0.0001726,2]
[365750140,1749876640138,-1574.2500075,0.000177,2]
[365750156,1749876640287,-940.0,0.000177,2]
[365750159,1749876640301,-35801.81611966,0.000177,2]
[365750354,1749876642928,-161784.24845389,0.000177,2]
[365750355,1749876642937,-3332.0,0.00017748,2]
[365750356,1749876642947,-945.0,0.00017748,2]
[365750357,1749876642957,-637.0,0.00017748,2]
[365750358,1749876642968,-803.0,0.00017748,2]
[365750359,1749876642978,-930.431,0.00017748,2]
[365750360,1749876642987,-1281.015,0.00017748,2]
[365750361,1749876642997,-560.093,0.00017748,2]
[365750362,1749876643007,-2002.0,0.00017748,2]
[365750363,1749876643016,-592.635,0.00017748,2]
[365750364,1749876643026,-1673.0,0.00017748,2]
[365750365,1749876643036,-4089.0,0.00017748,2]
[365750366,1749876643045,-7110.0,0.00017748,2]
[365750367,1749876643055,-885.246,0.00017748,2]
[365750368,1749876643064,-156.352,0.00017748,2]
[365750369,1749876643074,-856.808,0.00017748,2]
[365750370,1749876643084,-1717.126,0.00017798,2]
[365750371,1749876643093,-1000.0,0.000178,2]
[365750372,1749876643103,-500.0,0.00017848,2]
[365750373,1749876643113,-500.0,0.00017849,2]
[365750374,1749876643123,-500.0,0.00017849,2]
[365750375,1749876643132,-500.0,0.00017849,2]
[365750376,1749876643142,-200.0,0.00017849,2]
[365750377,1749876643151,-407.0,0.0001786,2]
[365750378,1749876643161,-150.0,0.00017877,2]
[365750379,1749876643170,-151.04768963,0.00017877,2]
[365750380,1749876643182,-150.0,0.00017877,2]
[365750381,1749876643192,-156.09551928,0.00017877,2]
[365750382,1749876643201,-150.0,0.00017877,2]
[365750383,1749876643212,-150.0,0.00017877,2]
[365750384,1749876643221,-203.23493525,0.00017877,2]
[365750385,1749876643231,-150.0,0.00017877,2]
[365750386,1749876643241,-150.0,0.00017877,2]
[365750387,1749876643251,-1244.5564,0.00017883,2]
[365750388,1749876643260,-578.89090033,0.00017885,2]
[365750389,1749876643270,-3724.43307858,0.00017885,2]
[365750390,1749876643279,-254.76838617,0.00017886,2]
[365750391,1749876643288,-4549.27306424,0.00017886,2]
[365750392,1749876643297,-947.7294,0.00017886,2]
[365750394,1749876643307,-150.12990329,0.000179,2]
[365750396,1749876643316,-150.0,0.000179,2]
[365750398,1749876643325,-150.53226489,0.000179,2]
[365750400,1749876643334,-150.0,0.000179,2]
[365750402,1749876643343,-150.0,0.000179,2]
[365750404,1749876643352,-3100.0,0.000179,6]
[365750406,1749876643361,-151.57529836,0.000179,2]
[365750409,1749876643371,-150.0,0.00017904,2]
[365750411,1749876643380,-752.0,0.00017906,2]
[365750414,1749876643390,-181.0,0.00017932,2]
[365750417,1749876643399,-151.0,0.0001797,2]
[365750419,1749876643409,-151.0,0.0001797,2]
[365750420,1749876643418,-234.326414,0.0001797,2]
[365750421,1749876643428,-234.326414,0.0001797,2]
[365750422,1749876643437,-494.566562,0.0001797,2]
[365750423,1749876643447,-494.566562,0.0001797,2]
[365750424,1749876643781,-844.908947,0.0001797,2]
[365750425,1749876643791,-844.908947,0.0001797,2]
[365750426,1749876643800,-500.0,0.00017973,2]
[365750427,1749876643809,-500.0,0.00017973,2]
[365750428,1749876643818,-33047.3106421,0.00017983,2]
[365750429,1749876643827,-18358.11126248,0.00017984,2]
[365750430,1749876643837,-151.673193,0.00017984,2]
[365750431,1749876643846,-245.423891,0.00017984,2]
[365750432,1749876643855,-337.194776,0.00017984,2]
[365750433,1749876643865,-337.194776,0.00017984,2]
[365750434,1749876643874,-611.37800389,0.00017984,2]
[365750435,1749876643883,-234.326414,0.00017984,2]
[365750436,1749876643892,-234.326414,0.00017984,2]
[365750437,1749876643901,-1498.813469,0.00017984,2]
[365750438,1749876643910,-1498.813469,0.00017984,2]
[365750439,1749876643919,-1373.251042,0.00017984,2]
[365750440,1749876643928,-1373.251042,0.00017984,2]
[365750441,1749876643937,-456.321513,0.00017984,2]
[365750442,1749876643946,-456.321513,0.00017984,2]
[365750443,1749876643955,-269.421776,0.00017984,2]
[365750444,1749876643964,-269.421776,0.00017984,2]
[365750445,1749876643973,-529.870361,0.00017984,2]
[365750446,1749876643982,-529.870361,0.00017984,2]
[365750447,1749876643991,-151.0,0.00017984,2]
[365750448,1749876644000,-153.068112,0.00017984,2]
[365750449,1749876644009,-151.0,0.00017984,2]
[365750450,1749876644018,-151.237326,0.00017984,2]
[365750451,1749876644027,-151.0,0.00017984,2]
[365750452,1749876644036,-151.0,0.00017984,2]
[365750453,1749876644045,-250.0,0.00017984,2]
[365750454,1749876644054,-151.0,0.00017984,2]
[365750455,1749876644063,-151.0,0.00017984,2]
[365750456,1749876644071,-160.598226,0.00017984,2]
[365750457,1749876644081,-160.598226,0.00017984,2]
[365750458,1749876644090,-369.076857,0.00017984,2]
[365750459,1749876644098,-369.076857,0.00017984,2]
[365750460,1749876644107,-151.0,0.00017984,2]
[365750461,1749876644117,-151.0,0.00017984,2]
[365750462,1749876644126,-153.712779,0.00017984,2]
[365750463,1749876644136,-151.0,0.00017984,2]
[365750464,1749876644144,-151.0,0.00017984,2]
[365750465,1749876644153,-151.0,0.00017984,2]
[365750466,1749876644162,-212.762355,0.00017984,2]
[365750467,1749876644171,-212.762355,0.00017984,2]
[365750468,1749876644180,-151.0,0.00017984,2]
[365750469,1749876644192,-151.0,0.00017984,2]
[365750470,1749876644201,-159.316641,0.00017984,2]
[365750471,1749876644210,-159.316641,0.00017984,2]
[365750472,1749876644219,-151.0,0.00017984,2]
[365750473,1749876644230,-151.0,0.00017984,2]
[365750474,1749876644241,-179.989865,0.00017984,2]
[365750475,1749876644250,-179.989865,0.00017984,2]
[365750476,1749876644261,-151.0,0.00017984,2]
[365750477,1749876644270,-151.0,0.00017984,2]
[365750478,1749876644281,-151.0,0.00017984,2]
[365750479,1749876644291,-151.0,0.00017984,2]
[365750480,1749876644300,-151.0,0.00017984,2]
[365750481,1749876644309,-151.0,0.00017984,2]
[365750482,1749876644320,-197.563263,0.00017984,2]
[365750483,1749876644330,-152.027006,0.00017984,2]
[365750484,1749876644341,-197.563263,0.00017984,2]
[365750485,1749876644351,-151.0,0.00017984,2]
[365750486,1749876644361,-166.888429,0.00017984,2]
[365750487,1749876644370,-800.89196,0.00017984,2]
[365750488,1749876644379,-387.551777,0.00017984,2]
[365750489,1749876644388,-166.888429,0.00017984,2]
[365750490,1749876644398,-151.0,0.00017984,2]
[365750491,1749876644408,-800.89196,0.00017984,2]
[365750492,1749876644417,-387.551777,0.00017984,2]
[365750493,1749876644427,-300.0,0.00017984,2]
[365750494,1749876644435,-300.0,0.00017984,2]
[365750495,1749876644444,-151.0,0.00017985,2]
[365750496,1749876644454,-151.0,0.00017985,2]
[365750497,1749876644463,-269.7524143,0.00017985,2]
[365750498,1749876644473,-228.06211063,0.00017985,2]
[365750499,1749876644482,-500.0,0.00017985,2]
[365750500,1749876644491,-540.29207086,0.00017985,2]
[365750501,1749876644500,-635.0317564,0.00017985,2]
[365750502,1749876644510,-151.0,0.00017985,2]
[365750503,1749876644519,-151.0,0.00017985,2]
[365750504,1749876644528,-212.762355,0.00017985,2]
[365750505,1749876644537,-212.762355,0.00017985,2]
[365750506,1749876644546,-159.316641,0.00017985,2]
[365750507,1749876644555,-159.316641,0.00017985,2]
[365750508,1749876644565,-159.316641,0.00017985,2]
[365750509,1749876644574,-159.316641,0.00017985,2]
[365750510,1749876644584,-159.316641,0.00017985,2]
[365750511,1749876644593,-159.316641,0.00017985,2]
[365750512,1749876644602,-151.0,0.00017985,2]
[365750513,1749876644612,-255.650229,0.00017985,2]
[365750514,1749876644621,-151.0,0.00017985,2]
[365750515,1749876644631,-151.0,0.00017985,2]
[365750516,1749876644640,-151.0,0.00017985,2]
[365750517,1749876644650,-179.989865,0.00017985,2]
[365750518,1749876644660,-179.989865,0.00017985,2]
[365750519,1749876644669,-179.989865,0.00017985,2]
[365750520,1749876644678,-179.989865,0.00017985,2]
[365750521,1749876644687,-151.0,0.00017985,2]
[365750522,1749876644697,-151.0,0.00017985,2]
[365750523,1749876644706,-151.0,0.00017985,2]
[365750524,1749876644715,-151.0,0.00017985,2]
[365750525,1749876644725,-151.0,0.00017985,2]
[365750526,1749876644734,-153.807211,0.00017985,2]
[365750527,1749876644744,-241.097429,0.00017985,2]
[365750528,1749876644755,-151.0,0.00017985,2]
[365750529,1749876644764,-151.0,0.00017985,2]
[365750530,1749876644774,-153.003975,0.00017985,2]
[365750531,1749876644783,-276.099779,0.00017985,2]
[365750532,1749876644794,-197.563263,0.00017985,2]
[365750533,1749876644803,-197.563263,0.00017985,2]
[365750534,1749876644813,-197.563263,0.00017985,2]
[365750535,1749876644822,-197.563263,0.00017985,2]
[365750536,1749876644832,-197.563263,0.00017985,2]
[365750537,1749876644841,-197.563263,0.00017985,2]
[365750538,1749876644850,-151.0,0.00017985,2]
[365750539,1749876644859,-151.0,0.00017985,2]
[365750540,1749876644868,-151.0,0.00017985,2]
[365750541,1749876644877,-800.89196,0.00017985,2]
[365750542,1749876644887,-800.89196,0.00017985,2]
[365750543,1749876644896,-800.89196,0.00017985,2]
[365750544,1749876644905,-387.551777,0.00017985,2]
[365750545,1749876644915,-387.551777,0.00017985,2]
[365750546,1749876644924,-151.167456,0.00017985,2]
[365750547,1749876644933,-387.551777,0.00017985,2]
[365750548,1749876644943,-800.89196,0.00017985,2]
[365750549,1749876644952,-800.89196,0.00017985,2]
[365750550,1749876644962,-800.89196,0.00017985,2]
[365750551,1749876644971,-387.551777,0.00017985,2]
[365750552,1749876644981,-387.551777,0.00017985,2]
[365750553,1749876644991,-387.551777,0.00017985,2]
[365750554,1749876645001,-305.83097038,0.00017985,2]
[365750555,1749876645010,-300.0,0.00017985,2]
[365750556,1749876645019,-300.0,0.00017985,2]
[365750557,1749876645029,-151.0,0.00017986,2]
[365750558,1749876645038,-151.0,0.00017986,2]
[365750559,1749876645047,-151.0,0.00017986,2]
[365750560,1749876645056,-151.0,0.00017986,2]
[365750561,1749876645065,-151.0,0.00017986,2]
[365750562,1749876645075,-151.0,0.00017986,2]
[365750563,1749876645084,-151.0,0.00017986,2]
[365750564,1749876645093,-151.0,0.00017986,2]
[365750565,1749876645103,-151.0,0.00017986,2]
[365750566,1749876645112,-151.0,0.00017986,2]
[365750567,1749876645121,-151.527042,0.00017986,2]
[365750568,1749876645132,-151.0,0.00017986,2]
[365750569,1749876645142,-151.0,0.00017986,2]
[365750570,1749876645152,-151.416514,0.00017986,2]
[365750571,1749876645161,-151.0,0.00017986,2]
[365750572,1749876645171,-188.086937,0.00017986,2]
[365750573,1749876645182,-151.0,0.00017986,2]
[365750574,1749876645194,-151.0,0.00017986,2]
[365750575,1749876645203,-151.0,0.00017986,2]
[365750576,1749876645213,-151.0,0.00017986,2]
[365750577,1749876645223,-151.0,0.00017986,2]
[365750578,1749876645233,-151.0,0.00017986,2]
[365750579,1749876645243,-151.914757,0.00017986,2]
[365750580,1749876645253,-151.0,0.00017986,2]
[365750581,1749876645265,-151.0,0.00017986,2]
[365750582,1749876645274,-151.0,0.00017986,2]
[365750583,1749876645284,-151.0,0.00017986,2]
[365750584,1749876645294,-151.0,0.00017986,2]
[365750585,1749876645303,-151.0,0.00017986,2]
[365750586,1749876645313,-151.0,0.00017986,2]
[365750587,1749876645322,-151.0,0.00017986,2]
[365750588,1749876645332,-151.0,0.00017986,2]
[365750589,1749876645342,-151.0,0.00017986,2]
[365750590,1749876645351,-151.0,0.00017986,2]
[365750591,1749876645360,-151.0,0.00017986,2]
[365750592,1749876645371,-151.0,0.00017986,2]
[365750593,1749876645380,-151.0,0.00017986,2]
[365750594,1749876645390,-151.0,0.00017986,2]
[365750595,1749876645400,-290.634368,0.00017986,2]
[365750596,1749876645409,-151.0,0.00017986,2]
[365750597,1749876645419,-151.0,0.00017986,2]
[365750598,1749876645429,-151.0,0.00017986,2]
[365750599,1749876645439,-210.844214,0.00017986,2]
[365750600,1749876645448,-151.0,0.00017986,2]
[365750601,1749876645458,-178.219383,0.00017986,2]
[365750602,1749876645469,-151.0,0.00017986,2]
[365750603,1749876645479,-151.0,0.00017986,2]
[365750604,1749876645488,-151.0,0.00017986,2]
[365750605,1749876645497,-151.0,0.00017986,2]
[365750606,1749876645508,-151.0,0.00017986,2]
[365750607,1749876645517,-151.0,0.00017986,2]
[365750608,1749876645527,-151.0,0.00017986,2]
[365750609,1749876645538,-151.0,0.00017986,2]
[365750610,1749876645548,-151.0,0.00017986,2]
[365750611,1749876645558,-151.0,0.00017986,2]
[365750612,1749876645568,-151.0,0.00017986,2]
[365750613,1749876645578,-151.0,0.00017986,2]
[365750614,1749876645588,-151.0,0.00017986,2]
[365750615,1749876645598,-151.0,0.00017986,2]
[365750616,1749876645608,-152.487399,0.00017986,2]
[365750617,1749876645618,-151.0,0.00017986,2]
[365750618,1749876645628,-151.0,0.00017986,2]
[365750619,1749876645637,-151.0,0.00017986,2]
[365750620,1749876645647,-151.0,0.00017986,2]
[365750621,1749876645656,-151.0,0.00017986,2]
[365750622,1749876645667,-151.0,0.00017986,2]
[365750623,1749876645676,-151.0,0.00017986,2]
[365750624,1749876645685,-151.0,0.00017986,2]
[365750625,1749876645695,-151.0,0.00017986,2]
[365750626,1749876645704,-151.0,0.00017986,2]
[365750627,1749876645714,-151.0,0.00017986,2]
[365750628,1749876645729,-151.0,0.00017986,2]
[365750629,1749876645738,-151.0,0.00017986,2]
[365750630,1749876645748,-151.0,0.00017986,2]
[365750631,1749876645758,-151.0,0.00017986,2]
[365750632,1749876645768,-151.0,0.00017986,2]
[365750633,1749876645777,-308.331404,0.00017986,2]
[365750634,1749876645787,-308.331404,0.00017986,2]
[365750635,1749876645796,-308.331404,0.00017986,2]
[365750636,1749876645806,-308.331404,0.00017986,2]
[365750637,1749876645817,-308.331404,0.00017986,2]
[365750638,1749876645826,-308.331404,0.00017986,2]
[365750639,1749876645836,-308.331404,0.00017986,2]
[365750640,1749876645845,-308.331404,0.00017986,2]
[365750641,1749876645856,-151.0,0.00017986,2]
[365750642,1749876645865,-151.0,0.00017986,2]
[365750643,1749876645875,-151.0,0.00017986,2]
[365750644,1749876645884,-153.849013,0.00017986,2]
[365750645,1749876645894,-151.0,0.00017986,2]
[365750646,1749876645903,-151.0,0.00017986,2]
[365750647,1749876645913,-151.0,0.00017986,2]
[365750648,1749876645923,-215.137056,0.00017986,2]
[365750649,1749876645932,-337.194776,0.00017986,2]
[365750650,1749876645942,-337.194776,0.00017986,2]
[365750651,1749876645952,-337.194776,0.00017986,2]
[365750652,1749876645962,-337.194776,0.00017986,2]
[365750653,1749876645972,-337.194776,0.00017986,2]
[365750654,1749876645983,-337.194776,0.00017986,2]
[365750655,1749876645995,-337.194776,0.00017986,2]
[365750656,1749876646005,-337.194776,0.00017986,2]
[365750657,1749876646015,-337.194776,0.00017986,2]
[365750658,1749876646025,-337.194776,0.00017986,2]
[365750659,1749876646034,-151.0,0.00017986,2]
[365750660,1749876646044,-181.364842,0.00017986,2]
[365750661,1749876646053,-151.0,0.00017986,2]
[365750662,1749876646063,-151.0,0.00017986,2]
[365750663,1749876646072,-151.0,0.00017986,2]
[365750664,1749876646081,-151.0,0.00017986,2]
[365750665,1749876646090,-151.0,0.00017986,2]
[365750666,1749876646099,-221.109502,0.00017986,2]
[365750667,1749876646108,-234.326414,0.00017986,2]
[365750668,1749876646118,-234.326414,0.00017986,2]
[365750669,1749876646127,-234.326414,0.00017986,2]
[365750670,1749876646136,-234.326414,0.00017986,2]
[365750671,1749876646145,-234.326414,0.00017986,2]
[365750672,1749876646154,-234.326414,0.00017986,2]
[365750673,1749876646168,-234.326414,0.00017986,2]
[365750674,1749876646178,-234.326414,0.00017986,2]
[365750675,1749876646191,-234.326414,0.00017986,2]
[365750676,1749876646201,-234.326414,0.00017986,2]
[365750677,1749876646210,-1498.813469,0.00017986,2]
[365750678,1749876646220,-1498.813469,0.00017986,2]
[365750679,1749876646230,-1498.813469,0.00017986,2]
[365750681,1749876646239,-1498.813469,0.00017986,2]
[365750683,1749876646248,-1498.813469,0.00017986,2]
[365750685,1749876646258,-1498.813469,0.00017986,2]
[365750687,1749876646267,-1498.813469,0.00017986,2]
[365750689,1749876646277,-1498.813469,0.00017986,2]
[365750691,1749876646286,-1498.813469,0.00017986,2]
[365750693,1749876646296,-1498.813469,0.00017986,2]
[365750695,1749876646305,-494.566562,0.00017986,2]
[365750697,1749876646315,-494.566562,0.00017986,2]
[365750699,1749876646324,-494.566562,0.00017986,2]